bitfinex/quotes_SOLUSD_20250518
["timestamp","ask_amount","ask_price","bid_price","bid_amount"]
[1747596812031,37.83239385,168.08,168.02,37.83239385]
[1747596812032,47.33239385,168.07,168.02,37.83239385]
[1747596812233,10.98790975,168.08,168.01,37.83239385]
[1747596812440,47.33239385,168.07,168.02,37.83239385]
[1747596812848,9.5,168.07,168.02,37.83239385]
[1747596813160,9.5,168.08,168.04,37.83239385]
[1747596813454,9.5,168.14,168.07,37.83239385]
[1747596813752,9.5,168.16,168.13,37.83239385]
[1747596814055,1.48728205,168.2,168.13,37.83239385]
[1747596814056,10.98684516,168.18,168.13,37.83239385]
[1747596814238,9.5,168.19,168.16,37.83239385]
[1747596814434,9.5,168.2,168.17,37.83239385]
[1747596814629,9.5,168.24,168.19,37.83239385]
[1747596814944,9.5,168.2,168.18,37.83239385]
[1747596815152,9.5,168.19,168.17,37.83239385]
[1747596815332,47.33239385,168.23,168.17,37.83239385]
[1747596815531,9.5,168.21,168.14,18.64964886]
[1747596815740,9.5,168.2,168.14,18.64964886]
[1747596815948,9.5,168.19,168.14,56.48204271]
[1747596816129,9.5,168.19,168.16,37.83239385]
[1747596816347,9.0,168.22,168.17,37.83239385]
[1747596816546,9.0,168.24,168.19,37.83239385]
[1747596816756,9.0,168.23,168.19,37.83239385]
[1747596817057,9.0,168.2,168.18,37.83239385]
[1747596817276,9.0,168.2,168.16,37.83239385]
[1747596817460,9.0,168.2,168.15,18.64964886]
[1747596817765,9.0,168.19,168.14,56.48204271]
[1747596817955,9.0,168.19,168.16,37.83239385]
[1747596818272,1.48655367,168.23,168.14,18.64964886]
[1747596818273,9.0,168.18,168.17,37.83239385]
[1747596818439,9.0,168.18,168.15,37.83239385]
[1747596818756,9.0,168.19,168.16,37.83239385]
[1747596818950,9.0,168.18,168.16,37.83239385]
[1747596819351,9.0,168.24,168.18,18.64964886]
[1747596819560,9.0,168.25,168.22,37.83239385]
[1747596819866,9.0,168.24,168.23,37.83239385]
[1747596820360,9.0,168.23,168.21,37.83239385]
[1747596820537,9.0,168.24,168.21,37.83239385]
[1747596821064,9.0,168.21,168.18,18.64964886]
[1747596821258,9.0,168.21,168.19,37.83239385]
[1747596821774,5.94340717,168.26,168.16,5.94668811]
[1747596821775,9.0,168.23,168.2,37.83239385]
[1747596821972,9.0,168.22,168.18,37.83239385]
[1747596822143,9.0,168.22,168.18,56.48204271]
[1747596822343,9.0,168.24,168.2,37.83239385]
[1747596822538,9.0,168.24,168.21,37.83239385]
[1747596822766,9.0,168.25,168.21,37.83239385]
[1747596822965,9.0,168.24,168.21,37.83239385]
[1747596823175,9.0,168.26,168.21,37.83239385]
[1747596823349,9.0,168.27,168.21,18.64964886]
[1747596823549,9.0,168.27,168.22,37.83239385]
[1747596823945,9.0,168.31,168.27,18.64964886]
[1747596824176,9.0,168.3,168.29,37.83239385]
[1747596824465,9.0,168.3,168.26,37.83239385]
[1747596824664,9.0,168.27,168.23,37.83239385]
[1747596824883,9.0,168.27,168.21,37.83239385]
[1747596824884,9.0,168.25,168.21,37.83239385]
[1747596825081,9.0,168.34,168.25,18.64964886]
[1747596825238,9.0,168.32,168.31,37.83239385]
[1747596825443,9.0,168.32,168.27,18.64964886]
[1747596825658,9.0,168.32,168.25,18.64964886]
[1747596825943,9.0,168.29,168.28,37.83239385]
[1747596826168,9.0,168.29,168.27,37.83239385]
[1747596826668,1.48558815,168.32,168.28,18.64964886]
[1747596826848,9.0,168.31,168.3,37.83239385]
[1747596827245,9.0,168.29,168.24,26.0]
[1747596827455,9.0,168.28,168.24,5.94385374]
[1747596827665,9.0,168.26,168.22,1.6238]
[1747596828015,46.83239385,168.23,168.15,1.6565]
[1747596828277,9.0,168.19,168.16,37.83239385]
[1747596828447,9.0,168.19,168.17,37.83239385]
[1747596828642,9.0,168.19,168.15,7.60353197]
[1747596828843,9.0,168.18,168.15,37.83239385]
[1747596829067,9.0,168.19,168.13,18.64964886]
[1747596829271,9.0,168.19,168.16,37.83239385]
[1747596829571,9.0,168.18,168.13,18.64964886]
[1747596829870,9.0,168.19,168.13,18.64964886]
[1747596830058,9.0,168.18,168.13,18.64964886]
[1747596830374,9.0,168.18,168.12,6.6407]
[1747596830550,9.0,168.17,168.1,1.6565]
[1747596830754,9.0,168.13,168.05,6.6013]
[1747596831059,9.0,168.13,168.08,26.0]
[1747596831260,9.0,168.13,168.07,18.64964886]
[1747596831473,10.48712266,168.15,168.08,26.0]
[1747596831672,9.0,168.15,168.11,18.64964886]
[1747596832100,9.0,168.08,167.93,1.0]
[1747596832400,1.486816,168.14,167.92,1.5983]
[1747596832401,9.0,168.06,168.0,5.95238095]
[1747596832993,37.88734481,168.05,167.93,14.88627492]
[1747596833201,9.0,168.04,167.93,21.93753579]
[1747596833510,9.0,168.06,168.01,18.64964886]
[1747596833680,9.0,168.08,168.01,19.74505391]
[1747596833884,9.0,168.1,168.01,19.74505391]
[1747596834281,9.0,168.12,168.05,18.64964886]
[1747596834505,9.0,168.11,168.07,18.64964886]
[1747596834707,9.0,168.12,168.07,18.64964886]
[1747596834902,9.0,168.11,168.07,18.64964886]
[1747596835217,9.0,168.13,168.07,18.64964886]
[1747596835585,9.0,168.11,168.07,18.64964886]
[1747596836007,9.0,168.12,168.07,18.64964886]
[1747596836395,9.0,168.1,168.08,5.94954783]
[1747596836598,9.0,168.12,168.08,5.94954783]
[1747596836905,9.0,168.06,168.03,5.95131821]
[1747596837080,9.0,168.05,167.97,5.95344406]
[1747596837289,9.0,168.02,167.97,5.95344406]
[1747596837818,9.0,168.01,167.96,5.95374546]
[1747596838108,9.0,168.01,167.97,18.64964886]
[1747596838417,9.0,168.01,167.98,5.95308965]
[1747596838710,9.0,167.99,167.95,222.52]
[1747596838915,9.0,167.99,167.92,16.48605854]
[1747596839206,9.0,167.99,167.93,5.95486214]
[1747596839389,9.0,167.97,167.94,18.64964886]
[1747596839594,9.0,167.96,167.94,18.64964886]
[1747596839998,9.0,167.95,167.91,5.95525187]
[1747596840505,1.48863957,168.02,167.94,18.64964886]
[1747596840506,9.0,167.96,167.94,18.64964886]
[1747596840984,9.0,167.99,167.94,18.64964886]
[1747596841179,9.0,167.98,167.94,18.64964886]
[1747596841381,9.0,167.99,167.94,18.64964886]
[1747596841583,9.0,168.01,167.94,18.64964886]
[1747596841784,9.0,167.98,167.94,18.64964886]
[1747596842412,9.0,167.99,167.94,18.64964886]
[1747596842612,9.0,167.99,167.94,5.95448826]
[1747596842788,9.0,168.0,167.94,5.95448826]
[1747596843095,9.0,167.96,167.91,26.0]
[1747596843294,46.88734481,167.94,167.89,5.95628089]
[1747596843497,9.0,167.86,167.83,6.647]
[1747596843694,9.0,167.86,167.79,7.55193074]
[1747596843887,9.0,167.82,167.79,5.95983074]
[1747596844087,9.0,167.8,167.74,5.96160724]
[1747596844509,9.0,167.79,167.73,5.96196267]
[1747596844710,9.0,167.8,167.74,18.64964886]
[1747596844917,9.0,167.78,167.73,5.96196267]
[1747596845105,9.0,167.71,167.64,1.5921]
[1747596845408,9.0,167.71,167.67,18.64964886]
[1747596845612,9.0,167.71,167.66,27.10070187]
[1747596845613,9.0,167.73,167.66,1.10070187]
[1747596845809,9.0,167.71,167.66,5.96445186]
[1747596846317,9.0,167.72,167.66,5.96445186]
[1747596846492,37.88734481,167.72,167.66,5.96445186]
[1747596846690,9.0,167.69,167.66,5.96445186]
[1747596846904,9.0,167.71,167.66,5.96445186]
[1747596847112,46.88734481,167.72,167.66,5.96445186]
[1747596847318,9.0,167.71,167.66,5.96445186]
[1747596847494,9.0,167.71,167.62,14.91406839]
[1747596847495,9.0,167.69,167.6,7.06875531]
[1747596847695,9.0,167.7,167.6,35.79952267]
[1747596847919,9.0,167.72,167.63,26.0]
[1747596848218,9.0,167.7,167.64,18.64964886]
[1747596848419,9.0,167.67,167.64,18.64964886]
[1747596848596,9.0,167.67,167.63,18.64964886]
[1747596848791,9.0,167.62,167.56,20.88749808]
[1747596849505,9.0,167.6,167.56,20.88749808]
[1747596849719,9.0,167.61,167.56,20.88749808]
[1747596849900,8.0,167.6,167.56,5.96801145]
[1747596850094,8.0,167.62,167.57,18.64964886]
[1747596850602,8.0,167.64,167.59,18.64964886]
[1747596850925,8.0,167.69,167.62,26.0]
[1747596851112,8.0,167.72,167.63,18.64964886]
[1747596851309,8.0,167.72,167.66,26.0]
[1747596851500,8.0,167.74,167.67,18.64964886]
[1747596851712,8.0,167.73,167.67,18.64964886]
[1747596852030,8.0,167.76,167.67,18.64964886]
[1747596852231,8.0,167.77,167.71,18.64964886]
[1747596852390,8.0,167.79,167.71,18.64964886]
[1747596852593,8.0,167.7,167.58,29.836496]
[1747596852795,8.0,167.71,167.59,25.71973669]
[1747596853105,8.0,167.71,167.63,18.64964886]
[1747596853415,8.0,167.72,167.63,18.64964886]
[1747596853599,8.0,167.69,167.63,18.64964886]
[1747596853800,8.0,167.69,167.65,18.64964886]
[1747596854007,8.0,167.73,167.65,44.64964886]
[1747596854201,8.0,167.74,167.65,44.64964886]
[1747596854600,8.0,167.76,167.69,18.64964886]
[1747596854804,8.0,167.77,167.69,18.64964886]
[1747596855003,8.0,167.75,167.69,18.64964886]
[1747596855696,8.0,167.77,167.71,24.61232252]
[1747596855900,8.0,167.79,167.71,50.61232252]
[1747596856207,8.0,167.81,167.75,18.64964886]
[1747596856404,8.0,167.85,167.79,18.64964886]
[1747596856611,8.0,167.86,167.79,18.64964886]
[1747596856922,8.0,167.87,167.79,18.64964886]
[1747596857120,8.0,167.82,167.79,18.64964886]
[1747596858426,8.0,167.75,167.67,14.90967499]
[1747596858634,8.0,167.74,167.67,14.90967499]
[1747596858838,8.0,167.74,167.71,38.43247912]
[1747596859138,8.0,167.74,167.73,18.64964886]
[1747596859497,8.0,167.75,167.73,18.64964886]
[1747596859738,8.0,167.77,167.75,18.64964886]
[1747596859898,8.0,167.77,167.75,57.08212798]
[1747596860237,38.43247912,167.8,167.77,18.64964886]
[1747596860238,8.0,167.8,167.77,18.64964886]
[1747596860400,8.0,167.78,167.75,18.64964886]
[1747596860719,8.0,167.78,167.77,18.64964886]
[1747596860909,8.0,167.79,167.78,18.64964886]
[1747596861113,8.0,167.81,167.78,57.08212798]
[1747596861301,8.0,167.81,167.8,38.43247912]
[1747596861644,8.0,167.85,167.81,18.64964886]
[1747596861802,8.0,167.86,167.84,38.43247912]
[1747596862006,8.0,167.85,167.84,57.08212798]
[1747596862403,8.0,167.86,167.85,18.64964886]
[1747596862706,8.0,167.87,167.85,38.43247912]
[1747596862911,8.0,167.87,167.86,18.64964886]
[1747596863107,8.0,167.89,167.86,38.43247912]
[1747596863312,8.0,167.88,167.87,57.08212798]
[1747596863612,8.0,167.9,167.87,57.08212798]
[1747596863819,8.0,167.94,167.9,18.64964886]
[1747596864125,8.0,167.95,167.93,57.08212798]
[1747596864323,8.0,167.94,167.93,57.08212798]
[1747596864831,1.48846224,168.03,167.93,57.08212798]
[1747596864832,8.0,167.95,167.93,57.08212798]
[1747596865018,8.0,167.96,167.95,18.64964886]
[1747596865335,8.0,167.96,167.95,57.08212798]
[1747596865556,8.0,167.98,167.95,57.08212798]
[1747596865839,8.0,167.98,167.96,38.43247912]
[1747596866635,8.0,167.98,167.95,63.03627794]
[1747596867128,8.0,167.98,167.96,38.43247912]
[1747596867310,8.0,168.0,167.97,38.43247912]
[1747596867804,8.0,167.97,167.96,57.08212798]
[1747596868311,8.0,167.96,167.9,1.5236]
[1747596868628,8.0,167.93,167.91,18.64964886]
[1747596868811,8.0,167.94,167.93,18.64964886]
[1747596869126,8.0,167.94,167.93,38.43247912]
[1747596869338,8.0,167.95,167.94,18.64964886]
[1747596869529,8.0,167.95,167.94,57.08212798]
[1747596869834,8.0,167.94,167.92,18.64964886]
[1747596870045,8.0,167.93,167.92,57.08212798]
[1747596870215,8.0,167.94,167.92,57.08212798]
[1747596870415,8.0,167.95,167.94,18.64964886]
[1747596870638,8.0,167.96,167.94,57.08212798]
[1747596870941,8.0,167.96,167.95,57.08212798]
[1747596871445,8.0,168.0,167.96,18.64964886]
[1747596871645,8.0,168.0,167.92,18.64964886]
[1747596871845,8.0,168.01,167.98,38.43247912]
[1747596872046,8.0,167.99,167.94,18.64964886]
[1747596872232,8.0,167.98,167.97,18.64964886]
[1747596872422,8.0,167.99,167.97,57.08212798]
[1747596872623,14.87604451,168.06,167.97,57.08212798]
[1747596872624,8.0,168.01,167.98,38.43247912]
[1747596872824,8.0,168.03,168.0,18.64964886]
[1747596873019,8.0,168.03,168.0,57.08212798]
[1747596873229,8.0,168.04,168.02,18.64964886]
[1747596873433,8.0,168.05,168.02,57.08212798]
[1747596873739,8.0,168.03,168.02,18.64964886]
[1747596873920,8.0,168.05,168.02,18.64964886]
[1747596874240,8.0,168.0,167.99,18.64964886]
[1747596874550,8.0,167.97,167.94,38.43247912]
[1747596874725,8.0,167.95,167.92,18.64964886]
[1747596875125,8.0,167.95,167.9,7.6864]
[1747596875126,46.43247912,167.95,167.9,1.5236]
[1747596875346,8.0,167.88,167.85,38.43247912]
[1747596875557,8.0,167.86,167.85,38.43247912]
[1747596875726,26.0,168.01,167.85,38.43247912]
[1747596875727,8.0,167.89,167.85,38.01734705]
[1747596875921,8.0,167.89,167.88,38.01734705]
[1747596876131,8.0,167.95,167.9,26.0]
[1747596876345,8.0,167.95,167.94,18.64964886]
[1747596876535,8.0,167.93,167.91,38.01734705]
[1747596876857,8.0,167.93,167.92,18.64964886]
[1747596877057,8.0,167.93,167.92,56.66699591]
[1747596877233,8.0,167.93,167.92,18.64964886]
[1747596877433,8.0,167.94,167.92,56.66699591]
[1747596877650,8.0,167.9,167.86,5.9573454]
[1747596877845,8.0,167.91,167.89,57.0328228]
[1747596878158,8.0,167.93,167.91,18.64964886]
[1747596878334,8.0,167.93,167.92,57.0328228]
[1747596878539,8.0,167.92,167.9,38.38317394]
[1747596878749,8.0,167.9,167.89,57.0328228]
[1747596878929,8.0,167.9,167.89,18.64964886]
[1747596879135,8.0,167.92,167.9,18.64964886]
[1747596879334,8.0,167.92,167.91,38.38317394]
[1747596879660,8.0,167.93,167.92,18.64964886]
[1747596880158,8.0,167.92,167.9,18.64964886]
[1747596880363,8.0,167.9,167.88,18.64964886]
[1747596880659,8.0,167.92,167.9,18.64964886]
[1747596880965,8.0,167.91,167.9,18.64964886]
[1747596881140,8.0,167.93,167.9,57.0328228]
[1747596881334,8.0,167.91,167.9,57.0328228]
[1747596881961,8.0,167.92,167.9,57.0328228]
[1747596882259,8.0,167.91,167.9,57.0328228]
[1747596882771,8.0,167.91,167.9,18.64964886]
[1747596882933,8.0,167.91,167.89,5.95595301]
[1747596882934,8.0,167.9,167.89,18.64964886]
[1747596883138,8.0,167.9,167.89,57.0328228]
[1747596883645,8.0,167.9,167.87,38.38317394]
[1747596883953,8.0,167.89,167.88,18.64964886]
[1747596884259,8.0,167.88,167.85,18.64964886]
[1747596884457,8.0,167.9,167.87,57.0328228]
[1747596884664,8.0,167.89,167.85,18.64964886]
[1747596885165,8.0,167.91,167.85,18.64964886]
[1747596885339,8.0,167.94,167.89,18.64964886]
[1747596885539,8.0,167.92,167.89,18.64964886]
[1747596885949,8.0,167.92,167.87,38.38317394]
[1747596885950,8.0,167.9,167.87,38.38317394]
[1747596886133,8.0,167.87,167.84,64.38317394]
[1747596886329,8.0,167.88,167.85,57.0328228]
[1747596886630,8.0,167.87,167.86,18.64964886]
[1747596887258,8.0,167.85,167.84,18.64964886]
[1747596887459,8.0,167.85,167.84,38.38317394]
[1747596887669,8.0,167.9,167.85,18.64964886]
[1747596887957,8.0,167.89,167.88,18.64964886]
[1747596888166,8.0,167.91,167.86,24.60699426]
[1747596888370,8.0,167.95,167.86,25.70490479]
[1747596888669,8.0,167.96,167.9,18.64964886]
[1747596888853,8.0,167.96,167.9,19.74670092]
[1747596889161,8.0,167.99,167.94,18.64964886]
[1747596889359,8.0,168.02,167.98,18.64964886]
[1747596889540,8.0,168.03,167.98,18.64964886]
[1747596890038,8.0,168.0,167.95,31.95405699]
[1747596890239,8.0,167.98,167.93,26.0]
[1747596890450,8.0,167.96,167.94,18.64964886]
[1747596891365,8.0,167.98,167.94,18.64964886]
[1747596891669,8.0,167.96,167.94,18.64964886]
[1747596892380,8.0,167.97,167.94,24.60414844]
[1747596892583,8.0,167.95,167.91,18.64964886]
[1747596892739,8.0,167.94,167.91,18.64964886]
[1747596893357,8.0,167.95,167.91,18.64964886]
[1747596893579,8.0,167.97,167.91,18.64964886]
[1747596893946,8.0,167.96,167.91,18.64964886]
[1747596894348,8.0,167.97,167.93,18.64964886]
[1747596895599,8.0,167.98,167.93,18.64964886]
[1747596895746,8.0,167.99,167.93,18.64964886]
[1747596895947,8.0,167.98,167.93,18.64964886]
[1747596896153,8.0,167.99,167.93,18.64964886]
[1747596896466,8.0,167.99,167.94,18.64964886]
[1747596896666,1.48814323,168.07,167.94,18.64964886]
[1747596896667,8.0,167.97,167.94,18.64964886]
[1747596896871,8.0,167.99,167.94,18.64964886]
[1747596897043,8.0,167.97,167.94,18.64964886]
[1747596897771,8.0,167.98,167.94,18.64964886]
[1747596898267,8.0,167.97,167.94,24.60412732]
[1747596899972,8.0,167.98,167.94,24.60412732]
[1747596900140,8.0,167.97,167.94,24.60412732]
[1747596900347,8.0,167.96,167.9,7.7705]
[1747596900665,14.87957121,168.02,167.91,24.60517652]
[1747596900666,8.0,167.94,167.91,24.60517652]
[1747596900862,8.0,167.93,167.91,24.60517652]
[1747596901068,8.0,167.92,167.9,18.64964886]
[1747596901664,7.4416096,167.98,167.9,18.64964886]
[1747596901665,8.0,167.98,167.94,18.64964886]
[1747596901869,8.0,167.95,167.94,18.64964886]
[1747596902068,8.0,167.97,167.94,18.64964886]
[1747596902372,8.0,167.95,167.94,24.60399465]
[1747596902778,8.0,167.98,167.94,24.60399465]
[1747596903101,8.0,167.95,167.94,24.60399465]
[1747596903581,8.0,167.96,167.94,24.60399465]
[1747596903760,8.0,167.97,167.94,24.60399465]
[1747596904078,8.0,167.96,167.94,24.60399465]
[1747596904247,1.48819034,168.03,167.94,24.60399465]
[1747596904248,8.0,167.99,167.94,24.60399465]
[1747596904556,8.0,167.97,167.94,24.60399465]
[1747596904956,8.0,167.99,167.94,39.49026355]
[1747596905173,8.0,168.01,167.96,44.64964886]
[1747596905353,8.0,168.02,167.96,44.64964886]
[1747596905554,8.0,167.99,167.96,44.64964886]
[1747596905748,8.0,168.0,167.96,44.64964886]
[1747596906076,1.48798799,168.09,168.0,18.64964886]
[1747596906077,8.0,168.03,168.0,18.64964886]
[1747596906256,8.0,168.02,168.01,24.60167552]
[1747596906572,8.0,168.03,168.01,24.60167552]
[1747596906772,8.0,168.03,168.01,18.64964886]
[1747596906984,8.0,168.02,168.01,18.64964886]
[1747596907174,8.0,168.02,167.93,24.604511]
[1747596907175,8.0,167.97,167.93,24.604511]
[1747596907375,8.0,167.95,167.93,24.604511]
[1747596907885,8.0,167.98,167.93,39.49166636]
[1747596908188,8.0,168.0,167.93,39.49166636]
[1747596908391,8.0,167.97,167.93,39.49166636]
[1747596908758,8.0,167.97,167.93,24.604511]
[1747596908958,8.0,167.92,167.88,5.95628386]
[1747596909158,8.0,167.87,167.84,222.7]
[1747596909387,8.0,167.85,167.84,222.7]
[1747596909668,8.0,167.88,167.83,5.95812239]
[1747596909865,8.0,167.89,167.86,26.0]
[1747596910161,8.0,167.89,167.87,18.64964886]
[1747596910512,8.0,167.89,167.85,24.60734918]
[1747596910783,8.0,167.86,167.82,5.95876534]
[1747596911086,8.0,167.84,167.81,5.95908145]
[1747596911404,8.0,167.85,167.81,5.95908145]
[1747596911692,8.0,167.89,167.85,18.64964886]
[1747596911855,8.0,167.87,167.85,18.64964886]
[1747596912058,8.0,167.9,167.85,18.64964886]
[1747596912259,8.0,167.88,167.86,5.9573454]
[1747596912467,8.0,167.88,167.85,18.64964886]
[1747596912667,8.0,167.87,167.85,18.64964886]
[1747596912867,8.0,167.89,167.85,18.64964886]
[1747596913067,8.0,167.9,167.85,19.74792921]
[1747596913368,8.0,167.91,167.85,19.74792921]
[1747596913567,8.0,167.93,167.89,18.64964886]
[1747596913770,45.97056768,167.91,167.79,6.52506405]
[1747596913984,8.0,167.84,167.76,1.09922608]
[1747596914187,8.0,167.83,167.76,18.64964886]
[1747596914389,8.0,167.8,167.76,24.61026457]
[1747596914567,8.0,167.79,167.75,31.961233]
[1747596914761,14.89302681,167.87,167.78,26.0]
[1747596914762,8.0,167.82,167.78,26.0]
[1747596914983,8.0,167.82,167.79,18.64964886]
[1747596915387,8.0,167.81,167.79,18.64964886]
[1747596915570,8.0,167.81,167.75,20.86436265]
[1747596915571,8.0,167.79,167.75,5.961233]
[1747596915764,8.0,167.77,167.74,7.53184281]
[1747596915964,8.0,167.76,167.73,31.96195497]
[1747596916171,8.0,167.76,167.74,18.64964886]
[1747596916566,14.89602574,167.83,167.72,228.6622614]
[1747596916567,8.0,167.74,167.72,222.7]
[1747596916797,8.0,167.72,167.65,14.91157553]
[1747596917086,5.9610323,167.76,167.64,8.38303126]
[1747596917087,8.0,167.7,167.66,5.96445186]
[1747596917589,8.0,167.72,167.69,26.0]
[1747596917888,8.0,167.71,167.7,18.64964886]
[1747596918064,8.0,167.77,167.74,18.64964886]
[1747596918267,8.0,167.76,167.74,18.64964886]
[1747596918475,8.0,167.78,167.75,24.61090072]
[1747596918683,8.0,167.79,167.75,24.61090072]
[1747596918875,8.0,167.8,167.76,45.74966666]
[1747596919074,8.0,167.83,167.8,18.64964886]
[1747596919275,8.0,167.85,167.8,19.74883949]
[1747596919582,4.04444727,167.89,167.84,18.64964886]
[1747596919766,4.04444727,167.89,167.86,18.64964886]
[1747596919968,4.04444727,167.89,167.88,18.64964886]
[1747596920500,4.04444727,167.89,167.88,24.60628455]
[1747596921308,8.0,167.93,167.87,1.09765854]
[1747596921472,8.0,167.87,167.83,24.60805915]
[1747596921793,8.0,167.89,167.86,18.64964886]
[1747596922091,8.0,167.9,167.86,18.64964886]
[1747596922280,8.0,167.93,167.86,19.74773074]
[1747596922600,8.0,167.92,167.88,18.64964886]
[1747596922779,8.0,167.93,167.88,44.64964886]
[1747596923112,8.0,167.95,167.9,18.64964886]
[1747596923274,8.0,167.97,167.92,18.64964886]
[1747596923692,8.0,167.99,167.94,18.64964886]
[1747596923892,8.0,167.96,167.94,18.64964886]
[1747596924095,8.0,167.99,167.94,18.64964886]
[1747596924302,8.0,167.96,167.94,18.64964886]
[1747596924477,8.0,167.96,167.95,24.60380188]
[1747596924797,8.0,168.01,167.96,18.64964886]
[1747596925013,13.95212812,168.01,167.96,18.64964886]
[1747596925181,13.95212812,168.01,167.89,1.09603892]
[1747596925182,8.0,167.96,167.92,26.0]
[1747596925495,8.0,167.92,167.91,18.64964886]
[1747596925698,8.0,167.94,167.91,18.64964886]
[1747596925890,8.0,167.95,167.91,18.64964886]
[1747596926072,8.0,167.96,167.91,18.64964886]
[1747596926272,8.0,167.95,167.91,18.64964886]
[1747596926489,8.0,167.95,167.91,24.60506331]
[1747596926899,8.0,167.92,167.91,18.64964886]
[1747596927113,8.0,167.91,167.89,18.64964886]
[1747596927484,8.0,167.89,167.84,46.14]
[1747596927814,8.0,167.89,167.86,26.0]
[1747596927979,8.0,167.89,167.86,27.09797609]
[1747596928179,8.0,167.89,167.87,18.64964886]
[1747596928375,8.0,167.92,167.87,18.64964886]
[1747596928600,8.0,167.89,167.86,44.64964886]
[1747596928777,8.0,167.87,167.86,18.64964886]
[1747596928973,8.0,167.87,167.79,14.89939122]
[1747596929176,8.0,167.87,167.76,6.6637]
[1747596929177,8.0,167.83,167.78,5.96018595]
[1747596929377,8.0,167.81,167.78,5.96018595]
[1747596929802,8.0,167.82,167.78,31.96018595]
[1747596930005,8.0,167.81,167.79,18.64964886]
[1747596930488,8.0,167.83,167.8,5.95947556]
[1747596930681,8.0,167.81,167.8,18.64964886]
[1747596931302,8.0,167.83,167.81,18.64964886]
[1747596931499,8.0,167.82,167.81,18.64964886]
[1747596931904,8.0,167.81,167.79,18.64964886]
[1747596932093,8.0,167.77,167.76,18.64964886]
[1747596932612,8.0,167.78,167.76,24.61054537]
[1747596932791,8.0,167.79,167.76,24.61054537]
[1747596932993,8.0,167.8,167.79,18.64964886]
[1747596933197,8.0,167.81,167.79,18.64964886]
[1747596933396,8.0,167.83,167.79,18.64964886]
[1747596933587,8.0,167.84,167.81,18.64964886]
[1747596933786,8.0,167.82,167.81,18.64964886]
[1747596933987,8.0,167.82,167.79,18.64964886]
[1747596934189,8.0,167.78,167.76,5.96089651]
[1747596934388,8.0,167.78,167.77,18.64964886]
[1747596934694,8.0,167.79,167.78,24.60983481]
[1747596935512,8.0,167.79,167.78,18.64964886]
[1747596935814,8.0,167.77,167.72,5.96231814]
[1747596936001,8.0,167.73,167.72,5.96231814]
[1747596936203,8.0,167.73,167.72,24.611967]
[1747596937009,5.95962206,167.8,167.73,24.61161153]
[1747596937010,8.0,167.74,167.73,24.61161153]
[1747596937206,8.0,167.74,167.69,46.5543]
[1747596937387,8.0,167.71,167.7,24.61267807]
[1747596938121,7.44990701,167.8,167.7,24.61267807]
[1747596938122,8.0,167.74,167.7,24.61267807]
[1747596938293,8.0,167.77,167.72,18.64964886]
[1747596938496,8.0,167.79,167.76,18.64964886]
[1747596938703,8.0,167.85,167.79,18.64964886]
[1747596939019,8.0,167.87,167.82,20.85567869]
[1747596939317,8.0,167.89,167.83,44.64964886]
[1747596939518,8.0,167.9,167.84,1.09845177]
[1747596939717,37.97056768,167.96,167.85,18.64964886]
[1747596939718,8.0,167.86,167.85,18.64964886]
[1747596940026,8.0,167.86,167.83,26.0]
[1747596940316,8.0,167.85,167.84,18.64964886]
[1747596940646,8.0,167.83,167.82,24.6084142]
[1747596940825,8.0,167.84,167.83,18.64964886]
[1747596940995,8.0,167.85,167.84,5.95805529]